bitfinex-derivatives/quotes_ETHF0:USTF0_20240927
["timestamp","ask_amount","ask_price","bid_price","bid_amount"]
[1727450160829,7.27677775,2691.5,2691.4,2.63017779]
[1727450161011,0.3857,2691.7,2691.6,0.37139]
[1727450161212,7.28517775,2691.7,2691.6,0.37139]
[1727450162220,8.6016411,2691.7,2691.6,0.37139]
[1727450162929,8.2302611,2691.7,2691.6,0.37139]
[1727450163118,7.28517775,2691.7,2691.6,0.37139]
[1727450163520,2.40595248,2692.1,2691.6,3.8709362]
[1727450163721,2.40595248,2692.1,2692.0,0.37134]
[1727450163722,0.94508335,2692.1,2692.0,0.37134]
[1727450164125,7.8445611,2692.1,2692.0,0.37134]
[1727450164333,7.8445611,2692.1,2692.0,3.27134]
[1727450164520,7.8445611,2692.1,2692.0,0.37134]
[1727450164716,8.2158811,2692.1,2692.0,0.37134]
[1727450165126,7.8445611,2692.1,2692.0,0.37134]
[1727450165718,7.8445611,2692.1,2691.9,0.37135]
[1727450166026,6.89947775,2691.9,2691.8,0.37136]
[1727450166235,7.27082775,2691.9,2691.8,0.37136]
[1727450166524,0.37138,2691.7,2691.6,0.37139]
[1727450166725,8.2159411,2691.7,2691.6,0.37139]
[1727450166921,7.8445611,2691.7,2691.6,0.37139]
[1727450167121,8.5976411,2691.7,2691.6,0.37139]
[1727450167323,8.5976411,2691.7,2691.5,0.37139]
[1727450167528,6.89947775,2691.5,2691.4,4.1787362]
[1727450167728,6.89947775,2691.5,2691.4,6.47922]
[1727450167930,6.89947775,2691.5,2691.4,7.4501562]
[1727450168433,6.89947775,2691.5,2691.4,7.76649149]
[1727450168629,6.89947775,2691.5,2691.4,7.44973805]
[1727450168826,0.3703,2691.6,2691.5,0.3714]
[1727450169024,7.26977775,2691.6,2691.5,1.34204754]
[1727450169331,7.26977775,2691.6,2691.5,0.3714]
[1727450170030,7.26977775,2691.6,2691.5,1.34204754]
[1727450170333,7.26977775,2691.6,2691.5,0.3714]
[1727450170535,0.3817,2691.7,2691.6,0.37139]
[1727450170833,7.28117775,2691.7,2691.6,4.24203754]
[1727450171022,7.28117775,2691.7,2691.6,0.37139]
[1727450171220,7.28117775,2691.7,2691.6,1.34203754]
[1727450171430,7.28117775,2691.7,2691.6,0.37139]
[1727450171730,0.3733,2691.9,2691.8,0.37136]
[1727450171925,7.27277775,2691.9,2691.8,0.37136]
[1727450173134,7.27277775,2691.9,2691.8,4.19978]
[1727450173339,0.3733,2691.9,2691.8,4.19978]
[1727450173727,0.3733,2691.9,2691.8,3.27136]
[1727450173924,0.3733,2691.9,2691.8,4.19978]
[1727450174131,0.3733,2691.9,2691.8,3.27136]
[1727450174337,0.7993,2692.2,2692.1,0.37132]
[1727450174632,6.89947775,2692.0,2691.8,2.9]
[1727450174839,6.89947775,2692.0,2691.9,0.37135]
[1727450178736,7.8445611,2692.0,2691.6,0.97064754]
[1727450179034,6.89947775,2691.7,2691.6,0.37139]
[1727450179441,8.5904611,2691.7,2691.5,0.3714]
[1727450179643,6.89947775,2691.5,2691.4,6.1078]
[1727450179936,6.89947775,2691.5,2691.4,6.47922]
[1727450180141,6.89947775,2691.5,2691.4,6.1078]
[1727450180535,6.89947775,2691.5,2691.4,6.47922]
[1727450180941,0.3875,2691.6,2691.5,0.3714]
[1727450181136,1.33258335,2691.6,2691.5,0.3714]
[1727450181346,8.2320611,2691.6,2691.5,0.3714]
[1727450182736,8.2320611,2691.6,2691.4,3.27141]
[1727450183041,10.10727775,2691.5,2691.2,0.97064754]
[1727450183238,6.89947775,2691.2,2691.0,0.97064754]
[1727450183431,0.7866,2691.1,2690.9,0.97064754]
[1727450183633,0.37149,2690.9,2690.7,0.97064754]
[1727450183831,6.89947775,2690.8,2690.6,0.37153]
[1727450184039,6.89947775,2690.7,2690.5,0.97064754]
[1727450184346,4.21628335,2691.0,2690.5,3.27153]
[1727450184347,6.89947775,2690.6,2690.5,3.27153]
[1727450184830,7.8445611,2690.6,2690.5,3.27153]
[1727450186344,0.3712,2691.0,2690.7,0.37151]
[1727450186638,6.34201573,2690.6,2690.5,1.45963758]
[1727450186839,10.49489908,2690.6,2689.9,0.97064754]
[1727450187139,10.49489908,2690.6,2689.9,0.37163]
[1727450187140,6.34201573,2690.0,2689.9,0.37163]
[1727450187341,6.34201573,2690.0,2689.9,3.27163]
[1727450187544,0.785,2690.5,2690.4,0.37156]
[1727450187740,7.12701573,2690.5,2690.4,0.37156]
[1727450188132,0.785,2690.5,2690.4,0.37156]
[1727450189735,3.2078,2691.3,2690.4,6.0]
[1727450189936,6.72271573,2691.2,2691.1,3.27146]
[1727450190137,6.34201573,2691.3,2691.1,2.9]
[1727450190748,0.3732,2691.6,2691.1,8.9]
[1727450191047,6.71521573,2691.6,2691.5,0.3714]
[1727450191434,6.34201573,2691.6,2691.5,0.3714]
[1727450192449,7.28709908,2691.6,2691.3,3.2078]
[1727450192636,6.34201573,2691.4,2691.3,0.37143]
[1727450193037,7.28709908,2691.4,2691.3,0.37143]
[1727450193751,0.3732,2691.7,2691.6,0.37139]
[1727450193941,7.66029908,2691.7,2691.6,0.37139]
[1727450194444,7.66029908,2691.7,2691.5,0.3714]
[1727450194639,6.34201573,2691.6,2691.5,0.3714]
[1727450195043,6.34201573,2691.6,2691.2,3.2078]
[1727450195252,6.34201573,2691.5,2691.4,0.37141]
[1727450195441,6.34201573,2691.6,2691.4,2.9]
[1727450196050,0.4019,2691.8,2691.7,0.37138]
[1727450196347,6.74391573,2691.8,2691.7,0.37138]
[1727450197541,0.3706,2692.2,2692.1,0.37132]
[1727450197747,8.02959908,2692.2,2692.1,0.37132]
[1727450198348,8.02959908,2692.2,2692.0,0.37133]
[1727450198547,6.34201573,2692.1,2692.0,0.37133]
[1727450198941,7.28709908,2692.1,2692.0,0.37133]
[1727450200547,7.28709908,2692.1,2691.5,3.2078]
[1727450200746,1.31641335,2692.1,2691.8,0.37136]
[1727450200954,0.37134,2692.0,2691.8,0.37136]
[1727450201250,6.34201573,2691.9,2691.5,3.2078]
[1727450201455,6.34201573,2691.6,2691.5,3.5792]
[1727450201846,7.28709908,2691.6,2691.5,3.5792]
[1727450204352,7.28709908,2691.6,2691.5,0.3714]
[1727450206457,7.66229908,2691.6,2691.5,0.3714]
[1727450207152,7.66229908,2691.6,2691.4,2.9]
[1727450207153,8.03369908,2691.6,2691.4,0.37141]
[1727450207358,6.34201573,2691.5,2691.4,0.37141]
[1727450207752,7.28709908,2691.5,2691.4,0.37141]
[1727450207952,7.65849908,2691.5,2691.4,0.37142]
[1727450208155,7.28709908,2691.5,2691.4,0.37142]
[1727450210060,7.65849908,2691.5,2691.3,0.37142]
[1727450210248,0.3864,2691.4,2691.3,0.37142]
[1727450210454,6.72841573,2691.4,2691.3,0.37142]
[1727450210649,8.04492908,2691.4,2691.2,6.47924]
[1727450210962,6.34201573,2691.3,2691.2,0.37145]
[1727450211161,7.28709908,2691.3,2691.2,0.37145]
[1727450214755,0.3864,2691.4,2691.3,1.30002]
[1727450214957,6.72841573,2691.4,2691.3,4.20002]
[1727450215260,6.34201573,2691.4,2691.3,5.12861]
[1727450216263,6.34201573,2691.4,2691.3,4.20002]
[1727450217260,0.3873,2692.5,2691.7,0.92843]
[1727450217463,6.34201573,2691.8,2691.7,3.57918]
[1727450218164,6.34201573,2691.8,2691.7,4.50763]
[1727450218765,6.34201573,2691.8,2691.7,3.57918]
[1727450218959,0.3956,2692.9,2692.2,0.92825]
[1727450219160,0.3956,2692.9,2692.6,2.9]
[1727450219357,6.34201573,2692.7,2692.5,0.37126]
[1727450219566,1.71190335,2692.9,2692.5,0.37127]
[1727450219759,6.34201573,2692.6,2692.4,3.27127]
[1727450219959,6.34201573,2692.5,2692.4,3.27127]
[1727450220371,0.37132,2692.2,2691.8,4.17240811]
[1727450220565,6.34201573,2691.9,2691.8,3.2078]
[1727450220759,9.54981573,2691.9,2691.2,0.087]
[1727450220962,6.34201573,2691.3,2691.2,0.37144]
[1727450221173,6.34201573,2691.3,2691.1,3.27145]
[1727450221471,6.71401573,2691.2,2691.1,3.27146]
[1727450222278,0.3852,2691.5,2691.4,0.37142]
[1727450222565,0.94508335,2691.5,2691.4,3.27142]
[1727450222768,0.372,2691.6,2691.5,1.29992]
[1727450222967,0.7944,2692.1,2691.4,7.03635]
[1727450223268,0.372,2692.0,2691.9,0.37135]
[1727450223772,7.65909908,2692.0,2691.9,0.37135]
[1727450224364,7.65909908,2692.0,2691.7,2.9]
[1727450224365,7.65909908,2692.0,2691.8,0.37136]
[1727450224575,6.34201573,2691.9,2691.7,2.9]
[1727450224762,6.34201573,2691.8,2691.4,3.2078]
[1727450224969,6.34201573,2691.5,2691.0,8.00107811]
[1727450225272,6.34201573,2691.3,2691.0,7.03647]
[1727450225472,6.34201573,2691.3,2691.2,0.37145]
[1727450225672,0.94508335,2691.3,2691.2,0.37145]
[1727450225868,7.28709908,2691.3,2691.2,0.37145]
[1727450226073,7.28709908,2691.3,2691.2,3.27145]
[1727450226575,6.34201573,2691.3,2691.2,3.27145]
[1727450226970,7.28709908,2691.3,2691.2,0.37145]
[1727450228174,0.37145,2691.2,2691.0,3.2078]
[1727450228364,0.37149,2690.9,2690.6,3.57933]
[1727450228568,6.71353573,2690.7,2690.6,3.2078]
[1727450228777,0.37154,2690.6,2690.3,0.37156]
[1727450229075,0.37157,2690.3,2690.0,0.3716]
[1727450229271,6.34201573,2690.1,2689.7,3.2078]
[1727450229471,6.34201573,2689.8,2689.7,3.2078]
[1727450229673,6.34201573,2689.8,2689.6,0.37166]
[1727450229876,6.34201573,2689.7,2689.5,3.57947]
[1727450230064,6.34201573,2689.6,2689.5,0.37167]
[1727450230467,7.28709908,2689.6,2689.5,0.37167]
[1727450231083,7.28709908,2689.6,2689.4,0.37169]
[1727450231273,0.94508335,2689.6,2689.4,0.37169]
[1727450231475,0.94508335,2689.6,2689.5,0.37168]
[1727450231874,7.28709908,2689.6,2689.5,0.37168]
[1727450232875,3.2078,2690.1,2689.9,0.37163]
[1727450233082,3.2078,2690.1,2689.8,0.37163]
[1727450233083,6.34201573,2690.0,2689.8,0.37163]
[1727450233379,6.34201573,2689.7,2689.6,0.37167]
[1727450233581,6.34201573,2689.7,2689.5,0.37168]
[1727450233777,6.71369573,2689.5,2689.4,3.2078]
[1727450233978,6.34201573,2689.5,2689.4,3.2078]
[1727450234172,7.28709908,2689.5,2689.4,3.5795]
[1727450234373,10.87489908,2689.5,2688.7,3.2078]
[1727450234585,10.87489908,2689.5,2688.8,0.37178]
[1727450234586,6.34201573,2688.9,2688.8,0.37178]
[1727450235078,3.95948,2689.5,2688.7,3.2078]
[1727450235286,6.34201573,2689.0,2688.7,3.2078]
[1727450235580,6.34201573,2689.0,2688.9,0.37176]
[1727450237283,3.5878,2689.5,2689.3,0.3717]
[1727450237578,3.5878,2689.5,2689.4,0.3717]
[1727450237579,4.53288335,2689.5,2689.4,0.3717]
[1727450237780,6.34201573,2689.5,2689.4,0.3717]
[1727450239884,7.28709908,2689.5,2689.4,0.3717]
[1727450240186,7.28709908,2689.5,2689.3,3.5795]
[1727450240391,6.34201573,2689.4,2689.3,3.5795]
[1727450240883,0.94508335,2689.4,2689.3,3.5795]
[1727450241184,7.28709908,2689.4,2689.3,3.5795]
[1727450241882,6.34201573,2689.4,2689.3,3.5795]
[1727450242084,0.4063,2689.9,2689.3,4.13708]
[1727450242383,6.34201573,2689.6,2689.5,0.37168]
[1727450243989,6.34201573,2689.6,2689.5,0.74638]
[1727450246386,5.78437044,2689.6,2689.5,0.74638]
[1727450246684,0.4063,2689.9,2689.8,0.37164]
[1727450246891,5.78437044,2689.9,2689.8,0.37164]
[1727450247091,5.78437044,2689.9,2689.6,3.2078]
[1727450247092,0.37162,2690.0,2689.6,3.57946]
[1727450247281,5.78437044,2689.7,2689.3,3.2078]
[1727450247583,0.37168,2689.5,2689.3,3.2078]
[1727450247791,5.78437044,2689.4,2689.3,3.57951]
[1727450248180,6.72945379,2689.4,2689.3,3.57951]
[1727450248382,6.72945379,2689.4,2689.3,3.2078]
[1727450248693,6.72945379,2689.4,2689.2,0.37172]
[1727450248888,6.55827044,2689.3,2689.2,0.37172]
[1727450249382,7.50335379,2689.3,2689.2,0.37172]
[1727450250895,7.50335379,2689.3,2689.1,0.37173]
[1727450251082,5.78437044,2689.0,2688.6,0.3917]
[1727450251286,5.78437044,2688.9,2688.8,0.37178]
[1727450252381,6.72945379,2688.9,2688.8,0.37178]
[1727450252585,0.7739,2689.3,2689.2,0.37172]
[1727450252779,1.71898335,2689.3,2689.2,0.37172]
[1727450252990,7.50335379,2689.3,2689.2,0.37172]
[1727450256287,7.50335379,2689.3,2688.8,0.92943]
[1727450256490,7.50335379,2689.3,2688.7,3.2078]
[1727450256491,5.78437044,2688.9,2688.7,4.13727]
[1727450256693,5.78437044,2688.9,2688.8,0.37178]
[1727450257798,5.78437044,2688.9,2688.8,2.23068]
[1727450259291,5.78437044,2688.9,2688.8,0.37178]
[1727450261796,5.78437044,2688.9,2688.7,4.13727]
[1727450261797,6.72945379,2688.9,2688.7,0.37179]
[1727450262096,6.72945379,2688.9,2688.4,3.2078]
[1727450262097,6.17757044,2688.8,2688.4,3.2078]
[1727450262393,5.78437044,2688.6,2688.4,3.2078]
[1727450262602,5.78437044,2688.6,2688.5,0.37181]
[1727450265201,5.78437044,2688.6,2688.5,1.30137]
[1727450268000,5.78437044,2688.6,2688.5,2.23093]
[1727450268207,0.4001,2689.2,2689.1,0.37174]
[1727450268513,6.18447044,2689.2,2689.1,0.37174]
[1727450268803,7.12955379,2689.2,2689.1,0.37174]
[1727450271202,5.78437044,2689.2,2689.1,1.30109]
[1727450271703,0.4048,2689.5,2689.1,3.57954]
[1727450271906,6.72945379,2689.5,2689.4,0.3717]
[1727450272204,3.6142,2689.8,2689.7,0.37165]
[1727450272205,0.8112,2689.8,2689.7,0.37165]
[1727450272513,7.54065379,2689.8,2689.7,0.37165]
[1727450273308,7.13585379,2689.8,2689.7,0.37165]
[1727450274818,7.13585379,2689.8,2689.6,1.33626811]
[1727450275106,5.78437044,2689.7,2689.6,0.37167]
[1727450275307,6.72945379,2689.7,2689.5,1.33627811]
[1727450275504,5.78437044,2689.6,2689.5,0.37167]
[1727450275712,5.78437044,2689.6,2689.4,0.37168]
[1727450275912,5.78437044,2689.6,2689.3,0.96460811]
[1727450275913,0.94508335,2689.6,2689.5,0.37168]
[1727450276116,6.72945379,2689.6,2689.3,0.96460811]
[1727450276411,6.72945379,2689.6,2689.3,0.3717]
[1727450276412,5.78437044,2689.4,2689.3,0.3717]
[1727450277007,6.72945379,2689.4,2689.3,0.3717]
[1727450278208,6.72945379,2689.4,2689.1,4.57760811]
[1727450278209,7.10115379,2689.4,2689.2,0.37172]
[1727450278415,7.10115379,2689.4,2689.1,3.2078]
[1727450278416,5.78437044,2689.2,2689.1,3.57953]
[1727450278805,6.72945379,2689.2,2689.1,3.57953]
[1727450282005,0.94508335,2689.2,2689.1,3.57953]
[1727450282203,0.94508335,2689.2,2689.1,0.37173]
[1727450283307,0.3959,2689.5,2689.4,0.3717]
[1727450283817,0.4052,2689.7,2689.4,0.3717]
[1727450283818,0.4052,2689.7,2689.6,0.37167]
[1727450284006,1.35028335,2689.7,2689.6,0.37167]
[1727450287020,7.13465379,2689.7,2689.6,0.37167]
[1727450287211,7.13465379,2689.7,2689.5,0.37168]
[1727450287409,7.13465379,2689.7,2689.4,0.37168]
[1727450287410,0.37168,2689.5,2689.4,0.37168]
[1727450287608,5.78437044,2689.3,2689.2,0.96460811]
[1727450287811,5.78437044,2689.3,2689.2,0.37172]
[1727450288018,6.72945379,2689.3,2689.2,0.37172]
[1727450288315,6.72945379,2689.3,2689.2,1.33632811]
[1727450289020,6.72945379,2689.3,2689.2,0.37172]
[1727450289319,9.62945379,2689.3,2689.2,0.37172]
[1727450289523,6.72945379,2689.3,2689.2,0.37172]
[1727450289817,7.10116379,2689.3,2689.1,0.37173]
[1727450290010,7.10116379,2689.3,2689.2,0.37172]
[1727450290011,0.94508335,2689.3,2689.2,0.37172]
[1727450290208,6.72945379,2689.3,2689.2,0.37172]
[1727450290423,7.10116379,2689.3,2689.1,0.37173]
[1727450290722,0.94508335,2689.3,2689.2,0.37172]
[1727450290923,7.10116379,2689.3,2689.0,0.96460811]
[1727450291214,5.78437044,2689.1,2689.0,0.37175]
[1727450291617,5.78437044,2689.1,2689.0,2.26573811]
[1727450291815,5.78437044,2689.1,2689.0,7.86671522]
[1727450292019,5.78437044,2689.1,2689.0,10.90577904]
[1727450292219,5.78437044,2689.1,2689.0,8.35326108]
[1727450292612,5.78437044,2689.1,2689.0,10.90588788]
[1727450293519,5.78437044,2689.1,2689.0,10.90287371]
[1727450294219,0.4052,2689.7,2689.6,0.37167]
[1727450294416,1.35028335,2689.7,2689.6,0.37167]
[1727450294722,7.13465379,2689.7,2689.6,0.37167]
[1727450295222,7.13465379,2689.7,2689.5,1.71850558]
[1727450295412,5.78437044,2689.6,2689.5,0.74677]
[1727450295921,5.78437044,2689.6,2689.5,1.67598]
[1727450296117,5.78437044,2689.6,2689.5,2.64771558]
[1727450296521,5.78437044,2689.6,2689.5,1.71850558]
[1727450297811,5.78437044,2689.6,2689.5,2.64771558]
[1727450298426,5.78437044,2689.6,2689.5,1.71850558]
[1727450298726,6.72945379,2689.6,2689.5,1.34340558]
[1727450298916,6.72945379,2689.6,2689.5,2.27261558]
[1727450299628,5.78437044,2689.6,2689.5,4.96393144]
[1727450300426,5.78437044,2689.6,2689.5,4.96318179]
[1727450300726,5.78437044,2689.6,2689.5,3.50632806]
[1727450300916,0.4047,2690.0,2689.9,0.37163]
[1727450301117,1.34978335,2690.0,2689.8,3.57943]
[1727450301323,1.34978335,2690.0,2689.7,0.37164]
[1727450301529,5.78437044,2689.8,2689.7,0.37164]
[1727450301920,6.72945379,2689.8,2689.7,0.37164]
[1727450302517,9.62945379,2689.8,2689.5,0.97120955]
[1727450302726,5.78437044,2689.6,2689.5,0.37168]
[1727450303128,6.72945379,2689.6,2689.5,0.37168]
[1727450304825,5.78437044,2689.6,2689.5,0.37168]
[1727450305026,5.78437044,2689.6,2689.5,4.03335032]
[1727450305823,5.78437044,2689.6,2689.5,4.03335402]
[1727450306035,5.78437044,2689.6,2689.5,5.84206067]
[1727450306224,0.4047,2690.0,2689.9,0.37163]
[1727450306430,1.34978335,2690.0,2689.9,1.34245354]
[1727450306731,1.34978335,2690.0,2689.9,0.37163]
[1727450306732,6.34141379,2690.0,2689.9,0.37163]
[1727450306927,6.34141379,2690.0,2689.8,4.17862354]
[1727450307129,4.99163044,2689.9,2689.8,4.55025354]
[1727450307634,5.93671379,2689.9,2689.8,4.55025354]
[1727450310931,5.93671379,2689.9,2689.8,5.82625343]
[1727450311340,5.93671379,2689.9,2689.8,4.55025354]
[1727450313233,5.93671379,2689.9,2689.8,0.97082354]
[1727450313541,5.93671379,2689.9,2689.6,0.97082354]
[1727450313736,4.99163044,2689.7,2689.6,0.37167]
[1727450314133,5.93671379,2689.7,2689.5,1.34250354]
[1727450314333,5.37013044,2689.6,2689.5,1.34250354]
[1727450314728,6.31521379,2689.6,2689.5,1.34250354]
[1727450315037,6.31521379,2689.6,2689.5,3.1059622]
[1727450315435,5.93671379,2689.6,2689.5,4.0351722]
[1727450315634,0.4047,2690.0,2689.9,0.37163]
[1727450315935,0.37155,2690.5,2689.9,0.37163]
[1727450315936,10.1858,2690.7,2690.0,0.92904]
[1727450316142,4.99163044,2690.3,2690.2,0.37158]
[1727450316827,4.99163044,2690.3,2690.2,1.34415362]
[1727450317231,0.783,2690.6,2690.5,0.37154]
[1727450317426,1.72808335,2690.6,2690.5,0.37154]
[1727450317731,6.71971379,2690.6,2690.5,0.37154]
[1727450318035,6.71971379,2690.6,2690.2,0.9720991]
[1727450318239,4.99163044,2690.3,2690.2,0.37157]
[1727450318627,5.93671379,2690.3,2690.1,0.9720991]
[1727450318829,5.93671379,2690.3,2690.0,4.1798991]
[1727450318830,4.99163044,2690.2,2690.0,4.1798991]
[1727450319041,4.99163044,2690.2,2690.0,4.5515091]
[1727450319042,5.38643044,2690.1,2690.0,4.5515091]
[1727450319242,5.78573044,2690.1,2690.0,4.5515091]
[1727450319436,6.73081379,2690.1,2690.0,4.5515091]
[1727450319739,6.73081379,2690.1,2690.0,3.57941]
[1727450320540,4.99163044,2690.1,2690.0,4.5515091]
[1727450320936,4.99163044,2690.1,2690.0,3.57941]
[1727450321136,5.93671379,2690.1,2690.0,3.57941]
[1727450321542,0.7941,2690.4,2690.3,0.37157]
[1727450321738,1.73918335,2690.4,2690.3,0.37157]
[1727450322038,4.99163044,2690.4,2690.3,1.3005]
[1727450322234,4.99163044,2690.4,2690.3,4.5083]
[1727450322931,4.99163044,2690.4,2690.3,5.48006439]
[1727450323127,4.99163044,2690.4,2690.3,6.75661216]
[1727450323341,4.99163044,2690.4,2690.3,5.48006439]
[1727450323539,4.99163044,2690.4,2690.3,8.38006439]
[1727450323739,0.8145,2690.7,2690.6,0.37153]
[1727450323944,1.75958335,2690.7,2690.6,0.37153]
[1727450324140,6.75121379,2690.7,2690.6,0.37153]
[1727450324748,6.75121379,2690.7,2690.4,0.37155]
[1727450325038,1.75958335,2690.7,2690.4,0.37155]
[1727450325236,4.99163044,2690.5,2690.2,0.37158]
[1727450325442,4.99163044,2690.3,2690.2,0.37158]
[1727450325937,5.93671379,2690.3,2690.0,0.3716]
[1727450326128,1.1944,2690.2,2690.1,0.3716]
[1727450326337,2.13948335,2690.2,2690.1,0.3716]
[1727450326637,7.13111379,2690.2,2690.1,0.3716]
[1727450326831,7.13111379,2690.2,2689.9,6.1078]
[1727450327033,7.13111379,2690.2,2689.7,0.37164]
[1727450327034,4.99163044,2690.0,2689.7,0.37164]
[1727450327240,0.37161,2690.1,2689.7,0.37164]
[1727450327241,4.99163044,2689.8,2689.7,0.37164]
[1727450327540,0.94508335,2690.1,2690.0,0.37161]
[1727450327736,0.94508335,2690.1,2690.0,3.27161]
[1727450327943,5.93671379,2690.1,2690.0,3.27161]
[1727450328133,0.3968,2690.6,2690.4,0.37155]
[1727450328336,2.10518335,2690.6,2690.4,3.27155]
[1727450328550,4.99163044,2690.5,2690.4,2.9]
[1727450328740,4.99163044,2690.5,2690.4,3.27156]
[1727450329444,5.93671379,2690.5,2690.4,0.37156]
[1727450329641,5.93671379,2690.5,2690.3,0.37156]
[1727450329840,4.99163044,2690.4,2690.2,3.57937]
[1727450330035,4.99163044,2690.3,2690.2,3.57937]
[1727450330541,5.93671379,2690.3,2690.2,3.57937]
[1727450330932,0.94508335,2690.3,2690.2,3.57937]
[1727450331242,5.93671379,2690.3,2690.2,3.57937]
[1727450333944,5.93671379,2690.3,2690.2,0.37157]
[1727450336146,4.99163044,2690.3,2690.2,1.30054]
[1727450336346,4.99163044,2690.3,2690.2,0.37157]
[1727450336651,4.99163044,2690.3,2690.2,1.30054]
[1727450337443,4.99163044,2690.3,2690.2,0.37157]
[1727450337646,4.99163044,2690.3,2690.2,3.27157]
[1727450338148,5.93671379,2690.3,2690.2,4.20054]
[1727450338344,4.99163044,2690.3,2690.2,5.12951]
[1727450338536,0.7633,2690.6,2690.5,0.37154]
[1727450338738,6.70001379,2690.6,2690.5,0.37154]
[1727450340248,0.4103,2690.9,2690.8,0.3715]
[1727450340444,5.93671379,2690.9,2690.8,5.12902]
[1727450340644,5.93671379,2690.9,2690.8,6.10078439]
[1727450340645,4.99163044,2690.9,2690.8,6.10078439]
[1727450340841,4.99163044,2690.9,2690.8,5.17202439]
[1727450341944,4.99163044,2690.9,2690.8,4.20026]
[1727450342540,4.99163044,2690.9,2690.8,3.2715]
[1727450342739,5.93671379,2690.9,2690.7,0.37151]
[1727450342942,5.74513044,2690.8,2690.7,0.37151]
[1727450343446,6.69021379,2690.8,2690.7,0.37151]
[1727450343648,6.69021379,2690.8,2690.6,3.57932]
[1727450343845,6.69021379,2690.8,2690.6,3.2078]
[1727450343846,4.99163044,2690.7,2690.6,3.2078]
[1727450344045,4.99163044,2690.7,2690.6,3.57933]
[1727450344351,5.93671379,2690.7,2690.6,3.57933]
[1727450345339,5.93671379,2690.7,2690.3,0.97176439]
[1727450345340,11.93671379,2690.7,2690.3,0.97176439]
[1727450345539,0.37159,2690.2,2689.9,0.97176439]
[1727450345843,3.41893452,2689.8,2689.7,0.37165]
[1727450346041,3.41893452,2689.8,2689.7,3.27165]
[1727450347542,3.41893452,2689.8,2689.7,2.9]
[1727450348051,3.41893452,2689.8,2689.7,3.27165]
[1727450348446,3.41893452,2689.8,2689.7,2.9]
[1727450348849,3.41893452,2689.8,2689.7,3.27165]
[1727450351444,3.41893452,2689.8,2689.7,4.53895978]
[1727450351646,0.7535,2690.1,2690.0,0.37161]
[1727450351852,3.80033452,2690.1,2690.0,3.27161]
[1727450352150,3.41893452,2690.1,2690.0,3.27161]
[1727450352352,3.41893452,2690.1,2690.0,5.84426752]
[1727450352653,0.8965,2691.0,2690.7,0.37151]
[1727450352847,1.18098,2691.0,2690.6,0.37152]
[1727450353338,3.41893452,2690.7,2690.6,0.37152]
[1727450356154,3.79045452,2690.7,2690.4,0.37155]
[1727450356358,0.37151,2690.8,2690.4,0.37155]
[1727450356555,3.41893452,2690.5,2690.4,0.37155]
[1727450359353,3.41893452,2690.5,2690.3,0.37156]
[1727450359550,4.57569452,2690.4,2690.2,3.2078]
[1727450359755,0.37157,2690.3,2690.2,3.2078]
[1727450360060,4.34788452,2690.3,2689.9,2.9]
[1727450360256,0.37166,2689.7,2689.5,3.2078]
[1727450360447,4.20413452,2689.6,2689.5,0.37168]
[1727450360651,4.20413452,2689.6,2689.5,3.27168]
[1727450361747,3.81263452,2689.6,2689.5,3.27168]
[1727450363755,4.078,2690.3,2690.0,0.3716]
[1727450363958,3.57937,2690.4,2689.5,3.82921]
[1727450363959,0.7969,2690.2,2690.1,3.2716]
[1727450364145,4.21583452,2690.2,2690.1,3.2716]
[1727450364349,4.21583452,2690.2,2690.1,2.9]
[1727450364545,7.42363452,2690.2,2689.9,3.27162]
[1727450364750,0.7969,2690.2,2690.1,0.3716]
[1727450364949,0.7969,2690.2,2690.1,3.2716]
[1727450364950,0.4006,2690.2,2690.1,3.2716]
[1727450365151,3.41893452,2690.2,2690.1,3.2716]
[1727450365356,0.807,2690.6,2690.1,2.9]
[1727450365550,0.4096,2690.6,2690.5,3.27154]
[1727450365953,3.41893452,2690.6,2690.5,3.27154]
[1727450366262,2.86150469,2690.6,2690.5,5.46678819]
[1727450367752,0.4096,2691.2,2690.5,5.46678819]
[1727450368061,0.4096,2691.2,2691.1,2.9]
[1727450368262,0.4096,2691.2,2691.1,3.27146]
[1727450368558,3.27110469,2691.2,2691.1,3.27146]
[1727450372261,3.27110469,2691.2,2691.1,0.37146]
[1727450373577,2.86150469,2691.2,2691.1,3.57926]
[1727450375856,2.86150469,2691.2,2691.1,3.2078]
[1727450376353,3.64285469,2691.2,2691.1,3.2078]
[1727450376560,0.37146,2691.1,2690.8,3.5793]
[1727450376760,0.37146,2691.1,2690.8,3.2078]
[1727450376957,2.86150469,2690.9,2690.8,3.2078]
[1727450377264,2.86150469,2690.9,2690.7,0.37151]
[1727450377461,2.86150469,2690.8,2690.6,0.37152]
[1727450377666,1.73094,2691.2,2690.7,0.37151]
[1727450377667,0.37148,2691.0,2690.7,0.37151]
[1727450377860,0.8023,2691.2,2690.7,0.37151]
[1727450377861,2.86150469,2690.8,2690.7,0.37151]
[1727450378854,2.86150469,2690.8,2690.6,0.37152]
[1727450379055,2.86150469,2690.6,2690.5,3.57934]
[1727450379662,2.86150469,2690.6,2690.5,3.2078]
[1727450379862,12.06930469,2690.6,2689.9,2.9]
[1727450380067,2.86150469,2690.0,2689.9,3.27163]
[1727450380268,2.86150469,2690.0,2689.9,2.9]
[1727450380461,2.86150469,2690.0,2689.9,3.27163]
[1727450381163,2.86150469,2690.0,2689.9,4.2007]
[1727450381668,2.86150469,2690.0,2689.9,3.27163]
[1727450386873,0.8149,2690.5,2690.4,0.37156]
[1727450387066,4.078,2690.7,2690.3,2.9]
[1727450387267,0.37149,2690.9,2690.6,0.37153]
[1727450387462,2.86150469,2690.7,2690.6,0.37153]
[1727450388967,2.86150469,2690.7,2690.4,3.2078]
[1727450389265,0.37151,2690.8,2690.4,0.37156]
[1727450389266,2.86150469,2690.5,2690.4,0.37156]
[1727450391073,2.86150469,2690.5,2690.4,0.37155]
[1727450394874,2.86150469,2690.5,2690.4,3.57935]
[1727450395075,2.86150469,2690.5,2690.4,0.37155]
[1727450395476,2.86150469,2690.5,2690.2,3.2078]
[1727450395675,0.8033,2690.4,2690.3,0.37157]
[1727450396171,3.66480469,2690.4,2690.2,3.2078]
[1727450396378,0.8033,2690.4,2690.3,0.37157]